fUST/lending_fUST_20250402
["ID","MTS","AMOUNT","RATE_DAILY","PERIOD"]
[357025712,1743586249332,-500.0,0.00020238,2]
[357025713,1743586249342,-970.99111566,0.00020412,2]
[357025714,1743586249351,-4590.38134199,0.00020417,2]
[357025715,1743586249360,-504.4186549,0.00020429,2]
[357025716,1743586249370,-1506.61,0.00020506,2]
[357025717,1743586249380,-500.0,0.00020506,2]
[357025718,1743586249391,-1000.0,0.00020506,7]
[357025719,1743586249400,-885.57,0.00020506,2]
[357025720,1743586249410,-520.65,0.00020506,2]
[357025721,1743586249419,-566.8,0.00020506,2]
[357025722,1743586249429,-500.0,0.00020506,2]
[357025723,1743586249438,-684.85,0.00020506,2]
[357025724,1743586249448,-500.0,0.00020506,2]
[357025725,1743586249457,-500.0,0.00020506,2]
[357025726,1743586249467,-500.0,0.00020506,2]
[357025727,1743586249476,-500.0,0.00020506,2]
[357025728,1743586249485,-500.0,0.00020506,2]
[357025729,1743586249495,-500.0,0.00020506,2]
[357025730,1743586249505,-1645.25,0.00020506,2]
[357025731,1743586249515,-500.0,0.00020507,2]
[357025732,1743586249525,-500.0,0.00020507,2]
[357025733,1743586249535,-500.0,0.00020507,2]
[357025734,1743586249545,-500.0,0.00020507,2]
[357025735,1743586249554,-500.0,0.00020507,2]
[357025736,1743586249564,-500.0,0.00020507,2]
[357025737,1743586249574,-500.0,0.00020507,2]
[357025738,1743586249583,-747.77,0.00020507,2]
[357025739,1743586249592,-290.79,0.00020507,2]
[357025740,1743586249602,-500.0,0.00020507,2]
[357025741,1743586249611,-500.0,0.00020507,2]
[357025742,1743586249620,-2535.26,0.00020508,2]
[357025743,1743586249630,-500.0,0.00020508,2]
[357025744,1743586249640,-900.05,0.00020508,2]
[357025745,1743586249649,-500.0,0.0002051,2]
[357025746,1743586249659,-500.0,0.0002051,2]
[357025747,1743586249668,-500.0,0.0002051,2]
[357025748,1743586249678,-500.0,0.0002051,2]
[357025749,1743586249688,-500.0,0.0002051,2]
[357025750,1743586249697,-500.0,0.0002051,2]
[357025751,1743586249707,-500.0,0.0002051,2]
[357025752,1743586249717,-500.0,0.0002051,2]
[357025753,1743586249726,-500.0,0.00020512,2]
[357025754,1743586249736,-500.0,0.00020512,2]
[357025755,1743586249745,-298.36294406,0.00020512,2]
[357025756,1743586249755,-500.0,0.00020512,2]
[357025757,1743586249764,-500.0,0.00020512,2]
[357025758,1743586249773,-1506.61,0.0002078,2]
[357025759,1743586249783,-500.0,0.0002078,2]
[357025760,1743586249792,-1000.0,0.0002078,7]
[357025761,1743586249802,-885.57,0.0002078,2]
[357025762,1743586249811,-520.65,0.0002078,2]
[357025763,1743586249820,-566.8,0.0002078,2]
[357025764,1743586249830,-500.0,0.0002078,2]
[357025765,1743586249840,-684.85,0.0002078,2]
[357025766,1743586249849,-500.0,0.0002078,2]
[357025767,1743586249861,-644.25,0.0002078,2]
[357025768,1743586249871,-500.0,0.0002078,2]
[357025769,1743586249880,-500.0,0.0002078,2]
[357025770,1743586249890,-500.0,0.0002078,2]
[357025771,1743586249899,-500.0,0.0002078,2]
[357025772,1743586249909,-1645.25,0.0002078,2]
[357025773,1743586249920,-500.0,0.00020781,2]
[357025774,1743586249930,-500.0,0.00020781,2]
[357025775,1743586249939,-500.0,0.00020781,2]
[357025776,1743586249949,-500.0,0.00020781,2]
[357025777,1743586249959,-500.0,0.00020781,2]
[357025779,1743586249970,-500.0,0.00020781,2]
[357025780,1743586249981,-500.0,0.00020781,2]
[357025781,1743586249991,-747.77,0.00020781,2]
[357025782,1743586250001,-500.0,0.00020781,2]
[357025783,1743586250011,-500.0,0.00020781,2]
[357025784,1743586250021,-2535.26,0.00020782,2]
[357025785,1743586250031,-500.0,0.00020782,2]
[357025786,1743586250041,-900.05,0.00020782,2]
[357025787,1743586250053,-648.38,0.00020784,2]
[357025788,1743586250063,-500.0,0.00020784,2]
[357025789,1743586250073,-500.0,0.00020784,2]
[357025790,1743586250082,-500.0,0.00020784,2]
[357025791,1743586250092,-500.0,0.00020784,2]
[357025792,1743586250103,-500.0,0.00020784,2]
[357025793,1743586250113,-500.0,0.00020784,2]
[357025794,1743586250123,-500.0,0.00020784,2]
[357025795,1743586250132,-500.0,0.00020786,2]
[357025796,1743586250141,-500.0,0.00020786,2]
[357025797,1743586250150,-1456.75954648,0.00020886,2]
[357025798,1743586250160,-4590.38134199,0.00020934,3]
[357025799,1743586250170,-6607.60158632,0.0002099,2]
[357025800,1743586250179,-152.21,0.00021,2]
[357025801,1743586250188,-1506.61,0.00021054,2]
[357025802,1743586250197,-500.0,0.00021054,2]
[357025803,1743586250207,-1000.0,0.00021054,7]
[357025804,1743586250216,-885.57,0.00021054,2]
[357025805,1743586250226,-520.65,0.00021054,2]
[357025806,1743586250235,-566.8,0.00021054,2]
[357025807,1743586250244,-500.0,0.00021054,2]
[357025808,1743586250254,-684.85,0.00021054,2]
[357025809,1743586250263,-500.0,0.00021054,2]
[357025810,1743586250273,-500.0,0.00021054,2]
[357025811,1743586250282,-500.0,0.00021054,2]
[357025812,1743586250291,-500.0,0.00021054,2]
[357025813,1743586250301,-331.69,0.00021054,2]
[357025814,1743586250311,-1645.25,0.00021054,2]
[357025815,1743586250320,-500.0,0.00021055,2]
[357025816,1743586250330,-500.0,0.00021055,2]
[357025817,1743586250339,-500.0,0.00021055,2]
[357025818,1743586250348,-500.0,0.00021055,2]
[357025819,1743586250359,-500.0,0.00021055,2]
[357025820,1743586250369,-500.0,0.00021055,2]
[357025821,1743586250378,-500.0,0.00021055,2]
[357025822,1743586250387,-747.77,0.00021055,2]
[357025823,1743586250397,-500.0,0.00021055,2]
[357025824,1743586250406,-500.0,0.00021055,2]
[357025825,1743586250415,-2535.26,0.00021056,2]
[357025826,1743586250425,-500.0,0.00021056,2]
[357025827,1743586250435,-900.05,0.00021056,2]
[357025828,1743586250444,-329.25,0.00021058,2]
[357025829,1743586250453,-500.0,0.00021058,2]
[357025830,1743586250462,-500.0,0.00021058,2]
[357025831,1743586250471,-500.0,0.00021058,2]
[357025832,1743586250480,-500.0,0.00021058,2]
[357025833,1743586250489,-500.0,0.00021058,2]
[357025834,1743586250498,-500.0,0.00021058,2]
[357025835,1743586250507,-500.0,0.0002106,2]
[357025836,1743586250516,-500.0,0.0002106,2]
[357025837,1743586250526,-477.68488705,0.0002113,2]
[357025838,1743586250535,-420.0,0.00021146,2]
[357025839,1743586250544,-500.0,0.0002115,2]
[357025840,1743586250553,-3000.0,0.0002116,2]
[357025841,1743586250563,-5043.391054,0.0002117,2]
[357025842,1743586250573,-152.921,0.00021201,2]
[357025843,1743586250582,-1897.0,0.00021326,2]
[357025844,1743586250592,-2274.753,0.00021326,2]
[357025845,1743586250602,-401.0,0.00021326,2]
[357025846,1743586250611,-542.0,0.00021326,2]
[357025847,1743586250621,-1506.61,0.00021328,2]
[357025848,1743586250630,-500.0,0.00021328,2]
[357025849,1743586250640,-1000.0,0.00021328,7]
[357025850,1743586250649,-885.57,0.00021328,2]
[357025851,1743586250659,-520.65,0.00021328,2]
[357025852,1743586250668,-566.8,0.00021328,2]
[357025853,1743586250677,-500.0,0.00021328,2]
[357025854,1743586250687,-684.85,0.00021328,2]
[357025855,1743586250695,-500.0,0.00021328,2]
[357025856,1743586250705,-500.0,0.00021328,2]
[357025857,1743586250714,-500.0,0.00021328,2]
[357025858,1743586250723,-500.0,0.00021328,2]
[357025859,1743586250734,-1645.25,0.00021328,2]
[357025860,1743586250743,-500.0,0.00021329,2]
[357025861,1743586250752,-500.0,0.00021329,2]
[357025862,1743586250761,-500.0,0.00021329,2]
[357025863,1743586250771,-500.0,0.00021329,2]
[357025864,1743586250780,-500.0,0.00021329,2]
[357025865,1743586250790,-500.0,0.00021329,2]
[357025866,1743586250800,-500.0,0.00021329,2]
[357025867,1743586250809,-747.77,0.00021329,2]
[357025868,1743586250819,-500.0,0.00021329,2]
[357025869,1743586250829,-592.33157679,0.00021329,2]
[357025870,1743586250838,-2535.26,0.0002133,2]
[357025871,1743586250848,-500.0,0.0002133,2]
[357025872,1743586250858,-900.05,0.0002133,2]
[357025873,1743586250867,-500.0,0.00021332,2]
[357025874,1743586250877,-232.16,0.00021332,2]
[357025875,1743586250886,-500.0,0.00021332,2]
[357025876,1743586250895,-500.0,0.00021332,2]
[357025877,1743586250905,-510.58,0.00021332,2]
[357025878,1743586250914,-500.0,0.00021332,2]
[357025879,1743586250923,-562.64002438,0.00021334,2]
[357025880,1743586250932,-497.0785057,0.00021339,2]
[357025881,1743586250942,-500.0,0.00021419,2]
[357025882,1743586250952,-4590.38134199,0.00021452,3]
[357025883,1743586251076,-1506.61,0.00021602,2]
[357025884,1743586251086,-500.0,0.00021602,2]
[357025885,1743586251097,-1000.0,0.00021602,7]
[357025886,1743586251106,-885.57,0.00021602,2]
[357025887,1743586251116,-520.65,0.00021602,2]
[357025888,1743586251125,-566.8,0.00021602,2]
[357025889,1743586251134,-500.0,0.00021602,2]
[357025890,1743586251143,-684.85,0.00021602,2]
[357025891,1743586251152,-500.0,0.00021602,2]
[357025892,1743586251161,-500.0,0.00021602,2]
[357025893,1743586251170,-500.0,0.00021602,2]
[357025894,1743586251179,-500.0,0.00021602,2]
[357025895,1743586251189,-1645.25,0.00021602,2]
[357025896,1743586251198,-500.0,0.00021603,2]
[357025897,1743586251208,-500.0,0.00021603,2]
[357025898,1743586251217,-500.0,0.00021603,2]
[357025899,1743586251227,-500.0,0.00021603,2]
[357025900,1743586251237,-500.0,0.00021603,2]
[357025901,1743586251247,-421.73,0.00021603,2]
[357025902,1743586251257,-500.0,0.00021603,2]
[357025903,1743586251266,-747.77,0.00021603,2]
[357025904,1743586251275,-500.0,0.00021603,2]
[357025905,1743586251286,-2535.26,0.00021604,2]
[357025906,1743586251296,-500.0,0.00021604,2]
[357025907,1743586251305,-900.05,0.00021604,2]
[357025908,1743586251315,-500.0,0.00021606,2]
[357025909,1743586251324,-500.0,0.00021606,2]
[357025910,1743586251334,-500.0,0.00021606,2]
[357025911,1743586251343,-500.0,0.00021606,2]
[357025912,1743586251353,-1506.61,0.00021876,2]
[357025913,1743586251362,-500.0,0.00021876,2]
[357025914,1743586251372,-1000.0,0.00021876,7]
[357025915,1743586251382,-885.57,0.00021876,2]
[357025916,1743586251391,-520.65,0.00021876,2]
[357025917,1743586251401,-566.8,0.00021876,2]
[357025918,1743586251410,-500.0,0.00021876,2]
[357025919,1743586251419,-684.85,0.00021876,2]
[357025920,1743586251428,-500.0,0.00021876,2]
[357025921,1743586251437,-500.0,0.00021876,2]
[357025922,1743586251447,-500.0,0.00021876,2]
[357025923,1743586251456,-500.0,0.00021876,2]
[357025924,1743586251466,-1645.25,0.00021876,2]
[357025925,1743586251475,-500.0,0.00021877,2]
[357025926,1743586251484,-500.0,0.00021877,2]
[357025927,1743586251494,-500.0,0.00021877,2]
[357025928,1743586251503,-500.0,0.00021877,2]
[357025929,1743586251513,-500.0,0.00021877,2]
[357025930,1743586251523,-500.0,0.00021877,2]
[357025931,1743586251532,-747.77,0.00021877,2]
[357025932,1743586251541,-500.0,0.00021877,2]
[357025933,1743586251551,-2535.26,0.00021878,2]
[357025934,1743586251560,-500.0,0.00021878,2]
[357025935,1743586251570,-900.05,0.00021878,2]
[357025936,1743586251579,-426.48,0.0002188,2]
[357025937,1743586251588,-418.9,0.0002188,2]
[357025938,1743586251598,-558.46,0.0002188,2]
[357025939,1743586251609,-500.0,0.0002188,2]
[357025940,1743586251619,-153.0,0.00021918,2]
[357025941,1743586251628,-153.0,0.00021918,2]
[357025942,1743586251638,-153.0,0.00021918,2]
[357025943,1743586251647,-153.0,0.00021918,2]
[357025944,1743586251656,-153.0,0.00021918,2]
[357025945,1743586251665,-153.0,0.00021918,2]
[357025946,1743586251674,-153.0,0.00021918,2]
[357025947,1743586251683,-153.0,0.00021918,2]
[357025948,1743586251693,-153.0,0.00021918,2]
[357025949,1743586251702,-153.0,0.00021918,2]
[357025950,1743586251711,-153.0,0.00021918,2]
[357025951,1743586251721,-153.0,0.00021918,2]
[357025952,1743586251729,-153.0,0.00021918,2]
[357025953,1743586251738,-153.0,0.00021918,2]
[357025954,1743586251747,-153.0,0.00021918,2]
[357025955,1743586251756,-153.0,0.00021918,2]
[357025956,1743586251765,-153.0,0.00021918,2]
[357025957,1743586251774,-153.0,0.00021918,2]
[357025958,1743586251783,-153.0,0.00021918,2]
[357025959,1743586251792,-153.0,0.00021918,2]
[357025960,1743586251801,-153.0,0.00021918,2]
[357025961,1743586251810,-153.0,0.00021918,2]
[357025962,1743586251819,-153.0,0.00021918,2]
[357025963,1743586251829,-529.98387815,0.00021939,2]
[357025964,1743586251838,-500.0,0.00021954,2]
[357025965,1743586251848,-4590.38134199,0.00021969,3]
[357025966,1743586251857,-88940.19103772,0.00022,2]
[357025967,1743586251866,-306.6316185,0.00022082,2]
[357025968,1743586251875,-153.0,0.00022082,2]
[357025969,1743586251885,-1506.61,0.0002215,2]
[357025970,1743586251894,-500.0,0.0002215,2]
[357025971,1743586251903,-1000.0,0.0002215,7]
[357025972,1743586251913,-885.57,0.0002215,2]
[357025973,1743586251922,-520.65,0.0002215,2]
[357025974,1743586251931,-566.8,0.0002215,2]
[357025975,1743586251941,-500.0,0.0002215,2]
[357025976,1743586251951,-684.85,0.0002215,2]
[357025977,1743586251960,-500.0,0.0002215,2]
[357025978,1743586251973,-500.0,0.0002215,2]
[357025979,1743586251983,-500.0,0.0002215,2]
[357025980,1743586251992,-500.0,0.0002215,2]
[357025981,1743586252002,-1645.25,0.0002215,2]
[357025982,1743586252011,-500.0,0.00022151,2]
[357025983,1743586252020,-500.0,0.00022151,2]
[357025984,1743586252030,-500.0,0.00022151,2]
[357025985,1743586252039,-494.19,0.00022151,2]
[357025986,1743586252051,-607.97,0.00022151,2]
[357025987,1743586252062,-500.0,0.00022151,2]
[357025988,1743586252071,-747.77,0.00022151,2]
[357025989,1743586252081,-500.0,0.00022151,2]
[357025990,1743586252091,-2535.26,0.00022152,2]
[357025991,1743586252102,-500.0,0.00022152,2]
[357025992,1743586252112,-900.05,0.00022152,2]
[357025993,1743586252121,-500.0,0.00022154,2]
[357025994,1743586252131,-1027.39436264,0.00022358,2]
[357025995,1743586252140,-1506.61,0.00022424,2]
[357025996,1743586252150,-500.0,0.00022424,2]
[357025997,1743586252160,-885.57,0.00022424,2]
[357025998,1743586252170,-520.65,0.00022424,2]
[357025999,1743586252180,-566.8,0.00022424,2]
[357026000,1743586252190,-500.0,0.00022424,2]
[357026001,1743586252200,-684.85,0.00022424,2]
[357026002,1743586252210,-500.0,0.00022424,2]
[357026003,1743586252219,-500.0,0.00022424,2]
[357026004,1743586252229,-500.0,0.00022424,2]
[357026005,1743586252239,-500.0,0.00022424,2]
[357026006,1743586252248,-1645.25,0.00022424,2]
[357026007,1743586252258,-500.0,0.00022425,2]
[357026008,1743586252268,-500.0,0.00022425,2]
[357026009,1743586252277,-500.0,0.00022425,2]
[357026010,1743586252287,-500.0,0.00022425,2]
[357026011,1743586252296,-747.77,0.00022425,2]
[357026012,1743586252306,-500.0,0.00022425,2]
[357026013,1743586252315,-2535.26,0.00022426,2]
[357026014,1743586252325,-500.0,0.00022426,2]
[357026015,1743586252334,-900.05,0.00022426,2]
[357026016,1743586252344,-500.0,0.00022428,2]
[357026017,1743586252353,-1456.75954648,0.00022463,2]
[357026018,1743586252363,-4590.38134199,0.00022486,4]
[357026019,1743586252372,-357.0,0.000225,3]
[357026020,1743586252381,-357.0,0.000225,3]
[357026021,1743586252391,-163.63067452,0.000225,3]
[357026022,1743586252400,-151.0,0.000226,9]
[357026023,1743586252411,-1506.61,0.00022698,2]
[357026024,1743586252420,-500.0,0.00022698,2]
[357026025,1743586252430,-885.57,0.00022698,2]
[357026026,1743586252440,-520.65,0.00022698,2]
[357026027,1743586252450,-566.8,0.00022698,2]
[357026028,1743586252460,-500.0,0.00022698,2]
[357026029,1743586252470,-684.85,0.00022698,2]
[357026030,1743586252479,-500.0,0.00022698,2]
[357026031,1743586252488,-500.0,0.00022698,2]
[357026032,1743586252498,-217.6826615,0.00022698,2]
[357026033,1743586252508,-500.0,0.00022698,2]
[357026034,1743586252517,-1645.25,0.00022698,2]
[357026035,1743586252527,-354.89,0.00022699,2]
[357026036,1743586252536,-386.69,0.00022699,2]
[357026037,1743586252545,-500.0,0.00022699,2]
[357026038,1743586252555,-500.0,0.00022699,2]
[357026039,1743586252564,-747.77,0.00022699,2]
[357026040,1743586252574,-500.0,0.00022699,2]
[357026041,1743586252584,-2535.26,0.000227,2]
[357026042,1743586252594,-500.0,0.000227,2]
[357026043,1743586252604,-900.05,0.000227,2]
[357026044,1743586252614,-500.0,0.00022702,2]
[357026045,1743586252623,-11659.38884472,0.0002277,2]
[357026046,1743586252633,-174.68733183,0.000229,2]
[357026047,1743586252642,-1506.61,0.00022972,2]
[357026048,1743586252651,-500.0,0.00022972,2]
[357026049,1743586252661,-885.57,0.00022972,2]
[357026050,1743586252670,-520.65,0.00022972,2]
[357026051,1743586252680,-566.8,0.00022972,2]
[357026052,1743586252690,-500.0,0.00022972,2]
[357026053,1743586252700,-684.85,0.00022972,2]
[357026054,1743586252709,-500.0,0.00022972,2]
[357026055,1743586252719,-403.22,0.00022972,2]
[357026056,1743586252728,-500.0,0.00022972,2]
[357026057,1743586252738,-1645.25,0.00022972,2]
[357026058,1743586252747,-501.16926636,0.00022973,2]
[357026059,1743586252756,-281.42007249,0.00022973,2]
[357026060,1743586252765,-500.0,0.00022973,2]
[357026061,1743586252774,-500.0,0.00022973,2]
[357026062,1743586252784,-500.0,0.00022973,2]
[357026063,1743586252793,-502.79056477,0.00022973,2]
[357026064,1743586252803,-500.0,0.00022973,2]
[357026065,1743586252812,-500.0,0.00022973,2]
[357026066,1743586252822,-500.0,0.00022973,2]
[357026067,1743586252831,-500.0,0.00022973,2]
[357026068,1743586252841,-500.0,0.00022973,2]
[357026069,1743586252850,-500.0,0.00022973,2]
[357026070,1743586252860,-500.0,0.00022973,2]
[357026071,1743586252869,-500.0,0.00022973,2]
[357026072,1743586252878,-500.0,0.00022973,2]
[357026073,1743586252888,-500.0,0.00022973,2]
[357026074,1743586252897,-500.0,0.00022973,2]
[357026075,1743586252906,-500.0,0.00022973,2]
[357026076,1743586252915,-500.0,0.00022973,2]
[357026077,1743586252924,-500.0,0.00022973,2]
[357026078,1743586252933,-500.0,0.00022973,2]
[357026079,1743586252942,-500.0,0.00022973,2]
[357026080,1743586252951,-500.0,0.00022973,2]
[357026081,1743586252960,-500.0,0.00022973,2]
[357026082,1743586252971,-500.0,0.00022973,2]
[357026083,1743586252983,-500.0,0.00022973,2]
[357026084,1743586252993,-500.0,0.00022973,2]
[357026085,1743586253002,-747.77,0.00022973,2]
[357026086,1743586253011,-500.0,0.00022973,2]
[357026087,1743586253022,-150.29,0.00022973,2]
[357026088,1743586253030,-500.0,0.00022973,2]
[357026089,1743586253040,-150.58556691,0.00022973,2]
[357026090,1743586253051,-151.6735817,0.00022973,2]
[357026091,1743586253061,-500.0,0.00022973,2]
[357026092,1743586253070,-500.0,0.00022973,2]
[357026093,1743586253079,-500.0,0.00022973,2]
[357026094,1743586253089,-500.0,0.00022973,2]
[357026095,1743586253098,-152.44480398,0.00022973,2]
[357026096,1743586253108,-500.0,0.00022973,2]
[357026097,1743586253118,-2535.26,0.00022974,2]
[357026098,1743586253127,-621.26,0.00022974,2]
[357026099,1743586253136,-900.05,0.00022974,2]
[357026100,1743586253145,-500.0,0.00022976,2]
[357026101,1743586253154,-62608.82992914,0.00023,2]
[357026102,1743586253251,-316.30000002,0.00023,2]
[357026104,1743586329665,-300.0,0.0001931,2]
[357026105,1743586329691,-16.0,0.00019311,2]
[357026107,1743586631048,2208.4009536,0.00025,30]
[357026108,1743587041122,185.372088,0.00013699,2]
[357026336,1743587437304,-1242.8,0.00017099,2]
[357026338,1743587437316,-1397.5184078,0.00017099,2]
[357026344,1743587437382,-44.74023819,0.00017447,2]
[357026348,1743587438726,-2367.29943211,0.00017447,2]
[357026349,1743587438736,-325.41430509,0.00018132,2]
[357026350,1743587438781,-1100.8184648,0.00018132,2]
[357026351,1743587438791,-300.0,0.0001823,2]
[357026352,1743587438801,-500.0,0.00018231,2]
[357026353,1743587438811,-500.0,0.00018231,2]
[357026354,1743587438821,-500.0,0.00018231,2]
[357026355,1743587438831,-500.0,0.00018231,2]
[357026356,1743587438840,-500.0,0.00018231,2]
[357026357,1743587438850,-342.2396375,0.00018231,2]
[357026358,1743587438862,-214.04438506,0.00018231,2]
[357026359,1743587438872,-489.19822788,0.00018231,2]
[357026360,1743587438881,-500.0,0.00018231,2]
[357026361,1743587438891,-500.0,0.00018231,2]
[357026362,1743587438901,-500.0,0.00018231,2]
[357026363,1743587438910,-500.0,0.00018231,2]
[357026364,1743587438920,-500.0,0.00018231,2]
[357026366,1743587438929,-500.0,0.00018231,2]
[357026368,1743587438939,-500.0,0.00018231,2]
[357026369,1743587438948,-500.0,0.00018231,2]
[357026370,1743587438957,-500.0,0.00018231,2]
[357026371,1743587438967,-500.0,0.00018231,2]
[357026372,1743587438976,-500.0,0.00018231,2]
[357026373,1743587438985,-500.0,0.00018231,2]
[357026374,1743587438995,-500.0,0.00018231,2]
[357026375,1743587439004,-500.0,0.00018231,2]
[357026376,1743587439013,-239.47139628,0.00018231,2]
[357026377,1743587439023,-500.0,0.00018231,2]
[357026378,1743587439033,-500.0,0.00018231,2]
[357026379,1743587439042,-500.0,0.00018231,2]
[357026380,1743587439052,-500.0,0.00018231,2]
[357026381,1743587439061,-500.0,0.00018231,2]
[357026382,1743587439070,-500.0,0.00018231,2]
[357026383,1743587439080,-500.0,0.00018231,2]
[357026384,1743587439090,-500.0,0.00018231,2]
[357026385,1743587439100,-500.0,0.00018231,2]
[357026386,1743587439109,-500.0,0.00018231,2]
[357026387,1743587439118,-500.0,0.00018231,2]
[357026388,1743587439128,-500.0,0.00018231,2]
[357026389,1743587439137,-500.0,0.00018231,2]
[357026390,1743587439147,-500.0,0.00018231,2]
[357026391,1743587439156,-500.0,0.00018231,2]
[357026392,1743587439165,-500.0,0.00018231,2]
[357026393,1743587439175,-500.0,0.00018231,2]
[357026394,1743587439184,-500.0,0.00018231,2]
[357026395,1743587439194,-500.0,0.00018231,2]
[357026396,1743587439203,-500.0,0.00018231,2]
[357026397,1743587439213,-500.0,0.00018231,2]
[357026398,1743587439222,-500.0,0.00018231,2]
[357026399,1743587439232,-211.35549407,0.00018231,2]
[357026400,1743587439244,-288.64450593,0.00018231,2]
[357026401,1743587439254,-500.0,0.00018231,2]
[357026402,1743587439263,-500.0,0.00018231,2]
[357026403,1743587439272,-500.0,0.00018231,2]
[357026404,1743587439282,-500.0,0.00018231,2]
[357026405,1743587439291,-500.0,0.00018231,2]
[357026406,1743587439301,-500.0,0.00018231,2]
[357026407,1743587439310,-500.0,0.00018231,2]
[357026408,1743587439320,-500.0,0.00018231,2]
[357026409,1743587439330,-500.0,0.00018231,2]
[357026410,1743587439339,-500.0,0.00018231,2]
[357026411,1743587439348,-500.0,0.00018231,2]
[357026412,1743587439357,-30957.10062978,0.00018232,2]
[357026413,1743587439368,-267.4375,0.00018232,2]
[357026417,1743587440931,-500.0,0.00018232,2]
[357026418,1743587440943,-6196.29855914,0.00018232,2]
[357026419,1743587440955,-949.75236137,0.00018232,2]
[357026420,1743587440984,-11129.41094971,0.00018232,2]
[357026421,1743587440997,-500.0,0.00018233,2]
[357026422,1743587441006,-1056.36,0.00018233,2]
[357026423,1743587441015,-500.0,0.00018233,2]
[357026424,1743587441024,-1117.38,0.00018233,2]
[357026425,1743587441034,-500.0,0.00018233,2]
[357026426,1743587441043,-500.0,0.00018233,2]
[357026427,1743587441053,-500.0,0.00018233,2]
[357026428,1743587441062,-1000.0,0.00018233,7]
[357026429,1743587441071,-500.0,0.00018233,2]
[357026430,1743587441081,-500.0,0.00018233,2]
[357026431,1743587441090,-500.0,0.00018233,2]
[357026432,1743587441100,-500.0,0.00018233,2]
[357026433,1743587441110,-500.0,0.00018233,2]
[357026434,1743587441130,-500.0,0.00018233,2]
[357026435,1743587441141,-500.0,0.00018233,2]
[357026436,1743587441151,-500.0,0.00018233,2]
[357026437,1743587441161,-500.0,0.00018233,2]
[357026438,1743587441171,-500.0,0.00018233,2]
[357026439,1743587441181,-500.0,0.00018233,2]
[357026440,1743587441191,-500.0,0.00018233,2]
[357026441,1743587441201,-500.0,0.00018233,2]
[357026442,1743587441211,-685.52,0.00018233,2]
[357026443,1743587441220,-500.0,0.00018233,2]
[357026444,1743587441230,-203.23357993,0.00018233,2]
[357026445,1743587441240,-615.60074655,0.00018233,2]
[357026446,1743587441250,-24900.0,0.00018234,2]
[357026447,1743587441260,-250.0,0.0001831,2]
[357026448,1743587441269,-2692.9926268,0.00018456,2]
[357026449,1743587441279,-500.0,0.00018505,2]
[357026450,1743587441289,-500.0,0.00018505,2]
[357026451,1743587441298,-334.2,0.00018505,2]
[357026452,1743587441307,-500.0,0.00018505,2]
[357026453,1743587441317,-500.0,0.00018507,2]
[357026454,1743587441329,-1056.36,0.00018507,2]
[357026455,1743587441339,-500.0,0.00018507,2]